fUST/lending_fUST_20250628
["ID","MTS","AMOUNT","RATE_DAILY","PERIOD"]
[368279362,1751087442417,-2034.3,0.00019726,2]
[368279363,1751087442426,-2478.78,0.00019726,2]
[368279364,1751087442435,-460.0,0.00019726,2]
[368279365,1751087442444,-158.48,0.00019726,2]
[368279366,1751087442453,-612.52,0.00019726,2]
[368279367,1751087442462,-460.0,0.00019726,2]
[368279368,1751087442472,-460.0,0.00019726,2]
[368279369,1751087442481,-683.5,0.00019726,2]
[368279370,1751087442491,-460.0,0.00019726,2]
[368279371,1751087442500,-2556.56,0.00019726,2]
[368279372,1751087442509,-460.0,0.00019726,2]
[368279373,1751087442518,-583.96932528,0.00019726,2]
[368279374,1751087442527,-474.62,0.00019726,2]
[368279375,1751087442536,-460.0,0.00019726,2]
[368279376,1751087442545,-460.0,0.00019726,2]
[368279377,1751087442554,-460.0,0.00019726,2]
[368279378,1751087442563,-518.99,0.00019726,2]
[368279379,1751087442572,-763.79,0.00019726,2]
[368279380,1751087442581,-460.0,0.00019726,2]
[368279381,1751087442591,-460.0,0.00019726,2]
[368279382,1751087442600,-460.0,0.00019726,2]
[368279383,1751087442609,-2327.45,0.00019726,2]
[368279384,1751087442619,-460.0,0.00019726,2]
[368279385,1751087442628,-460.0,0.00019726,2]
[368279386,1751087442637,-460.0,0.00019726,2]
[368279387,1751087442656,-2679.76,0.00019726,2]
[368279388,1751087442667,-460.0,0.00019726,2]
[368279389,1751087442677,-460.0,0.00019726,2]
[368279390,1751087442686,-471.91,0.00019726,2]
[368279391,1751087442695,-460.0,0.00019726,2]
[368279392,1751087442705,-478.22,0.00019726,2]
[368279393,1751087442714,-460.0,0.00019726,2]
[368279394,1751087442723,-2100.28,0.00019726,2]
[368279395,1751087442733,-460.0,0.00019726,2]
[368279396,1751087442742,-487.1086644,0.00019726,2]
[368279397,1751087442751,-460.0,0.00019726,2]
[368279398,1751087442760,-460.0,0.00019726,2]
[368279399,1751087442770,-1102.85,0.00019726,2]
[368279400,1751087442779,-460.0,0.00019726,2]
[368279401,1751087442789,-2998.79,0.00019726,2]
[368279402,1751087442798,-460.0,0.00019726,2]
[368279403,1751087442808,-1008.33,0.00019726,2]
[368279404,1751087442817,-460.0,0.00019726,2]
[368279405,1751087442826,-460.0,0.00019726,2]
[368279406,1751087442836,-1774.18,0.00019726,2]
[368279407,1751087442846,-460.0,0.00019726,2]
[368279408,1751087442855,-460.0,0.00019726,2]
[368279409,1751087442865,-460.0,0.00019726,2]
[368279410,1751087442874,-460.0,0.00019726,2]
[368279411,1751087442884,-415.743074,0.00019726,2]
[368279412,1751087442894,-519.19,0.00019726,2]
[368279413,1751087442904,-2125.58,0.00019726,2]
[368279414,1751087442914,-1953.73,0.00019726,2]
[368279415,1751087442928,-841.77,0.00019726,2]
[368279416,1751087442938,-1316.31,0.00019726,2]
[368279417,1751087442948,-460.0,0.00019726,2]
[368279418,1751087442958,-460.0,0.00019726,2]
[368279419,1751087442967,-460.0,0.00019726,2]
[368279420,1751087442977,-756.38,0.00019726,2]
[368279421,1751087442986,-460.0,0.00019726,2]
[368279422,1751087442995,-735.92,0.00019726,2]
[368279423,1751087443005,-460.0,0.00019726,2]
[368279424,1751087443015,-4060.56,0.00019726,2]
[368279425,1751087443024,-460.0,0.00019726,2]
[368279426,1751087443034,-4380.7,0.00019726,2]
[368279427,1751087443043,-460.0,0.00019726,2]
[368279428,1751087443053,-566.08,0.00019726,2]
[368279429,1751087443062,-510.75,0.00019726,2]
[368279430,1751087443072,-387.40038183,0.00019726,2]
[368279431,1751087443082,-1874.02,0.00019726,2]
[368279432,1751087443091,-477.85,0.00019726,2]
[368279433,1751087443103,-1714.33,0.00019726,2]
[368279434,1751087443112,-460.0,0.00019726,2]
[368279435,1751087443123,-460.0,0.00019726,2]
[368279436,1751087443132,-460.0,0.00019726,2]
[368279437,1751087443142,-460.0,0.00019726,2]
[368279438,1751087443151,-1029.75,0.00019726,2]
[368279439,1751087443164,-460.0,0.00019726,2]
[368279440,1751087443173,-1422.98,0.00019726,2]
[368279441,1751087443183,-460.0,0.00019726,2]
[368279442,1751087443192,-987.09,0.00019726,2]
[368279443,1751087443201,-503.40974568,0.0001975,2]
[368279444,1751087443211,-443.30882593,0.00019765,2]
[368279445,1751087443222,-512.10269403,0.00019769,2]
[368279446,1751087443232,-501.169435,0.00019769,2]
[368279447,1751087443242,-500.0,0.00019769,2]
[368279448,1751087443252,-500.0,0.00019769,2]
[368279449,1751087443262,-987.0,0.00019771,2]
[368279450,1751087443271,-500.0,0.00019795,2]
[368279451,1751087443286,-487.1023781,0.00019827,2]
[368279452,1751087443295,-987.0,0.00019837,2]
[368279453,1751087443306,-8927.03936837,0.000199,2]
[368279454,1751087443317,-460.0,0.0002,2]
[368279455,1751087443327,-460.0,0.0002,2]
[368279456,1751087443337,-460.0,0.0002,2]
[368279458,1751087443347,-18803.49168301,0.0002,2]
[368279460,1751087443356,-6894.0,0.0002,2]
[368279461,1751087443366,-460.0,0.0002,2]
[368279462,1751087443379,-460.0,0.0002,2]
[368279463,1751087443388,-476.08,0.0002,2]
[368279464,1751087443398,-460.0,0.0002,2]
[368279466,1751087443408,-775.28,0.0002,2]
[368279467,1751087443417,-460.0,0.0002,2]
[368279468,1751087443427,-460.0,0.0002,2]
[368279469,1751087443437,-460.0,0.0002,2]
[368279470,1751087443446,-460.0,0.0002,2]
[368279472,1751087443455,-460.0,0.0002,2]
[368279474,1751087443464,-460.0,0.0002,2]
[368279476,1751087443474,-460.0,0.0002,2]
[368279477,1751087443484,-460.0,0.0002,2]
[368279478,1751087443493,-162.54,0.0002,2]
[368279479,1751087443503,-1498.86,0.0002,2]
[368279480,1751087443512,-712.04,0.0002,2]
[368279482,1751087443522,-460.0,0.0002,2]
[368279484,1751087443532,-460.0,0.0002,2]
[368279486,1751087443543,-2034.3,0.0002,2]
[368279487,1751087443552,-2478.78,0.0002,2]
[368279488,1751087443564,-460.0,0.0002,2]
[368279490,1751087443573,-612.52,0.0002,2]
[368279491,1751087443583,-460.0,0.0002,2]
[368279492,1751087443596,-460.0,0.0002,2]
[368279493,1751087443607,-683.5,0.0002,2]
[368279494,1751087443617,-460.0,0.0002,2]
[368279496,1751087443627,-2556.56,0.0002,2]
[368279497,1751087443636,-460.0,0.0002,2]
[368279499,1751087443646,-474.62,0.0002,2]
[368279500,1751087443656,-460.0,0.0002,2]
[368279501,1751087443666,-460.0,0.0002,2]
[368279502,1751087443676,-460.0,0.0002,2]
[368279504,1751087443685,-518.99,0.0002,2]
[368279506,1751087443695,-763.79,0.0002,2]
[368279507,1751087443704,-460.0,0.0002,2]
[368279508,1751087443714,-460.0,0.0002,2]
[368279509,1751087443723,-460.0,0.0002,2]
[368279510,1751087443733,-2327.45,0.0002,2]
[368279511,1751087443742,-460.0,0.0002,2]
[368279512,1751087443751,-460.0,0.0002,2]
[368279513,1751087443762,-460.0,0.0002,2]
[368279514,1751087443771,-2679.76,0.0002,2]
[368279515,1751087443780,-460.0,0.0002,2]
[368279516,1751087443794,-305.77632878,0.0002,2]
[368279517,1751087443804,-478.22,0.0002,2]
[368279518,1751087443815,-460.0,0.0002,2]
[368279519,1751087443824,-460.0,0.0002,2]
[368279520,1751087443835,-2100.28,0.0002,2]
[368279521,1751087443845,-460.0,0.0002,2]
[368279522,1751087443854,-460.0,0.0002,2]
[368279523,1751087443864,-460.0,0.0002,2]
[368279524,1751087443872,-1102.85,0.0002,2]
[368279525,1751087443883,-460.0,0.0002,2]
[368279526,1751087443892,-2998.79,0.0002,2]
[368279527,1751087443902,-460.0,0.0002,2]
[368279528,1751087443914,-1008.33,0.0002,2]
[368279529,1751087443923,-460.0,0.0002,2]
[368279530,1751087443932,-460.0,0.0002,2]
[368279531,1751087443942,-1774.18,0.0002,2]
[368279532,1751087443951,-460.0,0.0002,2]
[368279533,1751087443961,-460.0,0.0002,2]
[368279534,1751087443970,-500.0,0.0002,2]
[368279535,1751087443979,-519.19,0.0002,2]
[368279536,1751087443988,-2125.58,0.0002,2]
[368279537,1751087443998,-1953.73,0.0002,2]
[368279538,1751087444006,-841.77,0.0002,2]
[368279539,1751087444016,-1316.31,0.0002,2]
[368279540,1751087444025,-460.0,0.0002,2]
[368279541,1751087444034,-460.0,0.0002,2]
[368279542,1751087444043,-460.0,0.0002,2]
[368279543,1751087444053,-756.38,0.0002,2]
[368279544,1751087444062,-460.0,0.0002,2]
[368279545,1751087444071,-735.92,0.0002,2]
[368279546,1751087444081,-460.0,0.0002,2]
[368279547,1751087444090,-4060.56,0.0002,2]
[368279548,1751087444100,-460.0,0.0002,2]
[368279549,1751087444111,-4380.7,0.0002,2]
[368279550,1751087444121,-460.0,0.0002,2]
[368279551,1751087444132,-566.08,0.0002,2]
[368279552,1751087444141,-510.75,0.0002,2]
[368279553,1751087444151,-1874.02,0.0002,2]
[368279554,1751087444161,-477.85,0.0002,2]
[368279555,1751087444171,-1714.33,0.0002,2]
[368279556,1751087444180,-460.0,0.0002,2]
[368279557,1751087444189,-460.0,0.0002,2]
[368279558,1751087444199,-460.0,0.0002,2]
[368279559,1751087444208,-460.0,0.0002,2]
[368279560,1751087444218,-1029.75,0.0002,2]
[368279561,1751087444228,-460.0,0.0002,2]
[368279562,1751087444238,-1422.98,0.0002,2]
[368279563,1751087444247,-460.0,0.0002,2]
[368279564,1751087444257,-987.09,0.0002,2]
[368279565,1751087444266,-987.0,0.00020016,2]
[368279566,1751087444277,-290.0,0.0002004,2]
[368279567,1751087444430,-300.0,0.00020047,2]
[368279568,1751087444439,-290.0,0.00020052,2]
[368279569,1751087444450,-160.0,0.00020112,2]
[368279570,1751087444459,-230.28494567,0.00020112,2]
[368279571,1751087444468,-837.06984471,0.00020112,2]
[368279572,1751087444477,-847.18566335,0.00020112,2]
[368279573,1751087444487,-213.78848551,0.00020112,2]
[368279574,1751087444496,-160.0,0.00020112,2]
[368279575,1751087444505,-160.0,0.00020112,2]
[368279576,1751087444515,-214.95397287,0.00020112,2]
[368279577,1751087444524,-160.0,0.00020112,2]
[368279578,1751087444533,-160.0,0.00020112,2]
[368279579,1751087444543,-160.0,0.00020112,2]
[368279580,1751087444552,-160.0,0.00020112,2]
[368279581,1751087444561,-12564.78152626,0.00020112,2]
[368279582,1751087444571,-160.0,0.00020112,2]
[368279583,1751087444580,-160.0,0.00020112,2]
[368279584,1751087444589,-8927.03936832,0.00020141,2]
[368279585,1751087444599,-328.909871,0.00020187,2]
[368279586,1751087444609,-2025.49537704,0.00020195,2]
[368279587,1751087444619,-290.0,0.00020216,2]
[368279588,1751087444630,-460.0,0.00020273,2]
[368279589,1751087444643,-460.0,0.00020273,2]
[368279590,1751087444653,-460.0,0.00020273,2]
[368279591,1751087444662,-480.66541348,0.00020273,2]
[368279592,1751087444672,-476.08,0.00020273,2]
[368279593,1751087444682,-460.0,0.00020273,2]
[368279594,1751087444691,-775.28,0.00020273,2]
[368279595,1751087444700,-460.0,0.00020273,2]
[368279596,1751087444710,-460.0,0.00020273,2]
[368279597,1751087444719,-460.0,0.00020273,2]
[368279598,1751087444729,-194.20416739,0.00020273,2]
[368279599,1751087444738,-460.0,0.00020273,2]
[368279600,1751087444748,-460.0,0.00020273,2]
[368279601,1751087444757,-249.21441597,0.00020273,2]
[368279602,1751087444767,-460.0,0.00020273,2]
[368279603,1751087444776,-1498.86,0.00020273,2]
[368279604,1751087444786,-712.04,0.00020273,2]
[368279605,1751087444795,-460.0,0.00020273,2]
[368279606,1751087444804,-460.0,0.00020273,2]
[368279607,1751087444813,-2034.3,0.00020273,2]
[368279608,1751087444822,-2478.78,0.00020273,2]
[368279609,1751087444832,-460.0,0.00020273,2]
[368279610,1751087444841,-612.52,0.00020273,2]
[368279611,1751087444849,-460.0,0.00020273,2]
[368279612,1751087444859,-460.0,0.00020273,2]
[368279613,1751087444869,-683.5,0.00020273,2]
[368279614,1751087444878,-2556.56,0.00020273,2]
[368279615,1751087444887,-564.17851885,0.00020273,2]
[368279616,1751087444897,-474.62,0.00020273,2]
[368279617,1751087444906,-511.65254243,0.00020273,2]
[368279618,1751087444916,-460.0,0.00020273,2]
[368279619,1751087444926,-460.0,0.00020273,2]
[368279620,1751087444935,-518.99,0.00020273,2]
[368279621,1751087444945,-763.79,0.00020273,2]
[368279622,1751087444954,-460.0,0.00020273,2]
[368279623,1751087444963,-460.0,0.00020273,2]
[368279624,1751087444972,-460.0,0.00020273,2]
[368279625,1751087444982,-2327.45,0.00020273,2]
[368279626,1751087444991,-460.0,0.00020273,2]
[368279627,1751087445000,-460.0,0.00020273,2]
[368279628,1751087445010,-460.0,0.00020273,2]
[368279629,1751087445019,-2679.76,0.00020273,2]
[368279630,1751087445028,-460.0,0.00020273,2]
[368279631,1751087445038,-478.22,0.00020273,2]
[368279632,1751087445047,-460.0,0.00020273,2]
[368279633,1751087445057,-460.0,0.00020273,2]
[368279634,1751087445066,-2100.28,0.00020273,2]
[368279635,1751087445076,-460.0,0.00020273,2]
[368279636,1751087445085,-460.0,0.00020273,2]
[368279637,1751087445094,-460.0,0.00020273,2]
[368279638,1751087445104,-1102.85,0.00020273,2]
[368279639,1751087445113,-460.0,0.00020273,2]
[368279640,1751087445123,-2998.79,0.00020273,2]
[368279641,1751087445131,-1008.33,0.00020273,2]
[368279642,1751087445141,-460.0,0.00020273,2]
[368279643,1751087445150,-460.0,0.00020273,2]
[368279644,1751087445159,-1774.18,0.00020273,2]
[368279645,1751087445169,-460.0,0.00020273,2]
[368279646,1751087445178,-460.0,0.00020273,2]
[368279647,1751087445188,-519.19,0.00020273,2]
[368279648,1751087445197,-2125.58,0.00020273,2]
[368279649,1751087445206,-1953.73,0.00020273,2]
[368279650,1751087445216,-841.77,0.00020273,2]
[368279651,1751087445225,-1316.31,0.00020273,2]
[368279652,1751087445235,-460.0,0.00020273,2]
[368279653,1751087445244,-460.0,0.00020273,2]
[368279654,1751087445253,-460.0,0.00020273,2]
[368279655,1751087445262,-756.38,0.00020273,2]
[368279656,1751087445271,-460.0,0.00020273,2]
[368279657,1751087445280,-735.92,0.00020273,2]
[368279658,1751087445290,-460.0,0.00020273,2]
[368279659,1751087445299,-4060.56,0.00020273,2]
[368279660,1751087445309,-460.0,0.00020273,2]
[368279661,1751087445318,-4380.7,0.00020273,2]
[368279662,1751087445328,-460.0,0.00020273,2]
[368279663,1751087445337,-566.08,0.00020273,2]
[368279664,1751087445346,-510.75,0.00020273,2]
[368279665,1751087445357,-1874.02,0.00020273,2]
[368279666,1751087445366,-477.85,0.00020273,2]
[368279667,1751087445376,-1714.33,0.00020273,2]
[368279668,1751087445385,-584.23005202,0.00020273,2]
[368279669,1751087445394,-460.0,0.00020273,2]
[368279670,1751087445404,-460.0,0.00020273,2]
[368279671,1751087445413,-460.0,0.00020273,2]
[368279672,1751087445422,-1029.75,0.00020273,2]
[368279673,1751087445431,-1422.98,0.00020273,2]
[368279674,1751087445442,-987.09,0.00020273,2]
[368279675,1751087445451,-460.0,0.00020273,2]
[368279676,1751087445461,-178.67757898,0.00020317,2]
[368279677,1751087445470,-1000.0,0.00020317,2]
[368279678,1751087445479,-1000.0,0.00020343,2]
[368279679,1751087445489,-290.0,0.00020356,2]
[368279680,1751087445498,-8927.03936832,0.00020383,3]
[368279681,1751087445508,-366.1706175,0.00020384,2]
[368279682,1751087445517,-366.1706175,0.00020384,2]
[368279683,1751087445526,-366.1706175,0.00020384,2]
[368279684,1751087445536,-397.3464739,0.00020384,2]
[368279685,1751087445545,-420.0,0.000205,2]
[368279686,1751087445554,-177.37387598,0.00020547,2]
[368279687,1751087445563,-460.0,0.00020547,2]
[368279688,1751087445572,-460.0,0.00020547,2]
[368279689,1751087445582,-476.08,0.00020547,2]
[368279690,1751087445591,-460.0,0.00020547,2]
[368279691,1751087445601,-775.28,0.00020547,2]
[368279692,1751087445611,-500.0,0.00020547,14]
[368279693,1751087445620,-207.15453225,0.00020547,2]
[368279694,1751087445631,-460.0,0.00020547,2]
[368279695,1751087445640,-452.75039927,0.00020547,2]
[368279696,1751087445650,-460.0,0.00020547,2]
[368279697,1751087445670,-500.0,0.00020547,2]
[368279698,1751087445680,-460.0,0.00020547,2]
[368279699,1751087445690,-1498.86,0.00020547,2]
[368279700,1751087445699,-712.04,0.00020547,2]
[368279701,1751087445709,-460.0,0.00020547,2]
[368279702,1751087445720,-460.0,0.00020547,2]
[368279703,1751087445730,-2034.3,0.00020547,2]
[368279704,1751087445739,-2478.78,0.00020547,2]
[368279705,1751087445750,-460.0,0.00020547,2]
[368279706,1751087445759,-612.52,0.00020547,2]
[368279707,1751087445769,-187.97660492,0.00020547,2]
[368279708,1751087445778,-460.0,0.00020547,2]
[368279709,1751087445791,-683.5,0.00020547,2]
[368279710,1751087445800,-2556.56,0.00020547,2]
[368279711,1751087445810,-474.62,0.00020547,2]
[368279712,1751087445820,-460.0,0.00020547,2]
[368279713,1751087445831,-460.0,0.00020547,2]
[368279714,1751087445840,-518.99,0.00020547,2]
[368279715,1751087445851,-763.79,0.00020547,2]
[368279716,1751087445861,-460.0,0.00020547,2]
[368279717,1751087445871,-460.0,0.00020547,2]
[368279718,1751087445881,-2327.45,0.00020547,2]
[368279719,1751087445890,-460.0,0.00020547,2]
[368279720,1751087445900,-460.0,0.00020547,2]
[368279721,1751087445910,-460.0,0.00020547,2]
[368279722,1751087445919,-2679.76,0.00020547,2]
[368279723,1751087445929,-460.0,0.00020547,2]
[368279724,1751087445938,-478.22,0.00020547,2]
[368279725,1751087445949,-460.0,0.00020547,2]
[368279726,1751087445958,-2100.28,0.00020547,2]
[368279727,1751087445969,-460.0,0.00020547,2]
[368279728,1751087445978,-460.0,0.00020547,2]
[368279729,1751087445988,-460.0,0.00020547,2]
[368279730,1751087445998,-1102.85,0.00020547,2]
[368279731,1751087446007,-460.0,0.00020547,2]
[368279732,1751087446017,-2998.79,0.00020547,2]
[368279733,1751087446026,-1008.33,0.00020547,2]
[368279734,1751087446036,-460.0,0.00020547,2]
[368279735,1751087446047,-460.0,0.00020547,2]
[368279736,1751087446057,-1774.18,0.00020547,2]
[368279737,1751087446067,-460.0,0.00020547,2]
[368279738,1751087446077,-460.0,0.00020547,2]
[368279739,1751087446086,-519.19,0.00020547,2]
[368279740,1751087446098,-1953.73,0.00020547,2]
[368279741,1751087446108,-2125.58,0.00020547,2]
[368279742,1751087446118,-841.77,0.00020547,2]
[368279743,1751087446128,-1316.31,0.00020547,2]
[368279744,1751087446138,-460.0,0.00020547,2]
[368279745,1751087446148,-460.0,0.00020547,2]
[368279746,1751087446158,-460.0,0.00020547,2]
[368279747,1751087446168,-756.38,0.00020547,2]
[368279748,1751087446178,-460.0,0.00020547,2]
[368279749,1751087446188,-735.92,0.00020547,2]
[368279750,1751087446197,-460.0,0.00020547,2]
[368279751,1751087446207,-4060.56,0.00020547,2]
[368279752,1751087446217,-460.0,0.00020547,2]
[368279753,1751087446227,-4380.7,0.00020547,2]
[368279754,1751087446236,-460.0,0.00020547,2]
[368279755,1751087446246,-566.08,0.00020547,2]
[368279756,1751087446255,-510.75,0.00020547,2]
[368279757,1751087446265,-1874.02,0.00020547,2]
[368279759,1751087446275,-477.85,0.00020547,2]
[368279760,1751087446284,-1714.33,0.00020547,2]
[368279761,1751087446294,-460.0,0.00020547,2]
[368279762,1751087446303,-410.54,0.00020547,2]
[368279763,1751087446313,-228.01781677,0.00020547,2]
[368279764,1751087446323,-1029.75,0.00020547,2]
[368279765,1751087446333,-1422.98,0.00020547,2]
[368279766,1751087446343,-987.09,0.00020547,2]
[368279768,1751087446352,-460.0,0.00020547,2]
[368279770,1751087446362,-3797.86,0.000206,2]
[368279771,1751087446371,-160.0,0.00020624,3]
[368279772,1751087446380,-847.18566335,0.00020624,3]
[368279773,1751087446390,-213.78848551,0.00020624,3]
[368279774,1751087446399,-160.0,0.00020624,3]
[368279776,1751087446409,-8927.03936832,0.00020624,3]
[368279779,1751087446419,-12564.78152626,0.00020624,3]
[368279780,1751087446428,-304.0,0.00020729,3]
[368279782,1751087446437,-2025.49537704,0.00020763,2]
[368279784,1751087446447,-160.0,0.00020819,3]
[368279786,1751087446457,-172.11808721,0.00020821,2]
[368279788,1751087446466,-460.0,0.00020821,2]
[368279791,1751087446476,-476.08,0.00020821,2]
[368279793,1751087446485,-460.0,0.00020821,2]
[368279794,1751087446495,-775.28,0.00020821,2]
[368279797,1751087446505,-460.0,0.00020821,2]
[368279799,1751087446514,-460.0,0.00020821,2]
[368279801,1751087446524,-460.0,0.00020821,2]
[368279803,1751087446533,-1498.86,0.00020821,2]
[368279805,1751087446543,-712.04,0.00020821,2]
[368279806,1751087446552,-460.0,0.00020821,2]
[368279807,1751087446561,-460.0,0.00020821,2]
[368279809,1751087446571,-2034.3,0.00020821,2]
[368279810,1751087446580,-2478.78,0.00020821,2]
[368279812,1751087446590,-460.0,0.00020821,2]
[368279813,1751087446600,-612.52,0.00020821,2]
[368279814,1751087446610,-460.0,0.00020821,2]
[368279816,1751087446619,-683.5,0.00020821,2]
[368279817,1751087446629,-2556.56,0.00020821,2]
[368279818,1751087446638,-474.62,0.00020821,2]
[368279819,1751087446648,-460.0,0.00020821,2]
[368279820,1751087446658,-763.79,0.00020821,2]
[368279821,1751087446667,-518.99,0.00020821,2]
[368279822,1751087446677,-460.0,0.00020821,2]
[368279823,1751087446687,-460.0,0.00020821,2]
[368279824,1751087446696,-2327.45,0.00020821,2]
[368279825,1751087446706,-460.0,0.00020821,2]
[368279826,1751087446715,-460.0,0.00020821,2]
[368279827,1751087446725,-460.0,0.00020821,2]
[368279828,1751087446735,-2679.76,0.00020821,2]
[368279829,1751087446744,-460.0,0.00020821,2]
[368279830,1751087446754,-478.22,0.00020821,2]
[368279831,1751087446763,-460.0,0.00020821,2]
[368279832,1751087446773,-2100.28,0.00020821,2]
[368279834,1751087446782,-460.0,0.00020821,2]
[368279836,1751087446792,-460.0,0.00020821,2]
[368279837,1751087446806,-1102.85,0.00020821,2]
[368279838,1751087446815,-460.0,0.00020821,2]
[368279839,1751087446825,-2998.79,0.00020821,2]
[368279840,1751087446834,-1008.33,0.00020821,2]
[368279841,1751087446844,-460.0,0.00020821,2]
[368279842,1751087446853,-460.0,0.00020821,2]
[368279843,1751087446863,-1774.18,0.00020821,2]
[368279844,1751087446872,-460.0,0.00020821,2]
[368279845,1751087446881,-460.0,0.00020821,2]
[368279846,1751087446892,-519.19,0.00020821,2]
[368279847,1751087446901,-1953.73,0.00020821,2]
[368279848,1751087446910,-2125.58,0.00020821,2]
[368279849,1751087446920,-841.77,0.00020821,2]
[368279850,1751087446930,-1316.31,0.00020821,2]
[368279851,1751087446939,-460.0,0.00020821,2]
[368279852,1751087446948,-460.0,0.00020821,2]
[368279853,1751087446957,-460.0,0.00020821,2]
[368279854,1751087446967,-756.38,0.00020821,2]
[368279855,1751087446976,-460.0,0.00020821,2]
[368279856,1751087446984,-735.92,0.00020821,2]
[368279857,1751087446994,-4060.56,0.00020821,2]
[368279858,1751087447003,-460.0,0.00020821,2]
[368279859,1751087447013,-460.0,0.00020821,2]
[368279860,1751087447023,-4380.7,0.00020821,2]
[368279861,1751087447032,-566.08,0.00020821,2]
[368279862,1751087447041,-510.75,0.00020821,2]
[368279863,1751087447051,-1874.02,0.00020821,2]
[368279864,1751087447060,-477.85,0.00020821,2]
[368279865,1751087447070,-1714.33,0.00020821,2]
[368279866,1751087447212,-460.0,0.00020821,2]
[368279867,1751087447222,-1029.75,0.00020821,2]
[368279868,1751087447232,-1422.98,0.00020821,2]
[368279869,1751087447242,-987.09,0.00020821,2]
[368279870,1751087447251,-460.0,0.00020821,2]
[368279871,1751087447260,-665.9220712,0.00020821,2]
[368279872,1751087447269,-420.0,0.00020859,2]
[368279873,1751087447279,-160.3588391,0.0002086,2]
[368279874,1751087447288,-5000.0,0.0002086,2]
[368279875,1751087447300,-25000.0,0.0002086,2]
[368279876,1751087447310,-503.93739225,0.0002086,2]
[368279877,1751087447319,-9311.42036975,0.0002086,2]
[368279878,1751087447328,-666.0,0.0002086,2]
[368279879,1751087447338,-500.0,0.0002086,2]
[368279880,1751087447347,-500.0,0.0002086,2]
[368279881,1751087447357,-500.0,0.0002086,2]
[368279882,1751087447366,-500.0,0.0002086,2]
[368279883,1751087447375,-500.0,0.0002086,2]
[368279884,1751087447384,-207.4,0.0002086,2]
[368279885,1751087447394,-500.0,0.0002086,2]
[368279886,1751087447404,-500.0,0.0002086,2]
[368279887,1751087447413,-500.0,0.0002086,2]
[368279888,1751087447422,-500.0,0.0002086,2]
[368279889,1751087447431,-500.0,0.0002086,2]
[368279890,1751087447441,-2001.05393756,0.0002086,2]
[368279891,1751087447451,-500.0,0.0002086,2]
[368279892,1751087447460,-500.0,0.0002086,2]
[368279893,1751087447469,-500.0,0.0002086,2]
[368279894,1751087447478,-500.0,0.0002086,2]
[368279895,1751087447488,-500.0,0.0002086,2]
[368279896,1751087447497,-500.0,0.0002086,2]
[368279897,1751087447506,-500.0,0.0002086,2]
[368279898,1751087447515,-500.0,0.0002086,2]
[368279899,1751087447524,-246.59496078,0.0002086,2]